fUSD/lending_fUSD_20250305
["ID","MTS","AMOUNT","RATE_DAILY","PERIOD"]
[355467956,1741189846738,-1048.1,0.00011365,2]
[355467957,1741189846748,-500.0,0.00011365,2]
[355467958,1741189846757,-500.0,0.00011365,2]
[355467959,1741189846767,-500.0,0.00011365,2]
[355467960,1741189846777,-1014.19,0.00011365,2]
[355467961,1741189846789,-500.0,0.00011365,2]
[355467962,1741189846803,-500.0,0.00011365,2]
[355467963,1741189846814,-1018.67,0.00011365,2]
[355467964,1741189846824,-500.0,0.00011365,2]
[355467965,1741189846836,-870.5,0.00011365,2]
[355467966,1741189846846,-905.48,0.00011365,2]
[355467967,1741189846856,-1541.44,0.00011365,2]
[355467968,1741189846867,-566.47,0.00011365,2]
[355467969,1741189846877,-1497.51,0.00011365,2]
[355467970,1741189846887,-898.67,0.00011365,2]
[355467971,1741189846897,-500.0,0.00011365,2]
[355467972,1741189846907,-396.24461,0.00011365,2]
[355467973,1741189846916,-2017.66,0.00011365,2]
[355467974,1741189846927,-1440.09,0.00011365,2]
[355467975,1741189846937,-908.36,0.00011365,2]
[355467976,1741189846947,-829.32,0.00011365,2]
[355467977,1741189846957,-1160.27,0.00011365,2]
[355467978,1741189846967,-1193.3,0.00011365,2]
[355467979,1741189846978,-924.39,0.00011365,2]
[355467980,1741189846988,-599.539402,0.00011365,2]
[355467981,1741189846998,-1513.47,0.00011365,2]
[355467982,1741189847009,-1446.89,0.00011365,2]
[355467983,1741189847019,-4412.09,0.00011365,2]
[355467984,1741189847029,-505.58,0.00011365,2]
[355467985,1741189847039,-1776.34,0.00011365,2]
[355467986,1741189847049,-1244.65,0.00011365,2]
[355467987,1741189847059,-1535.61,0.00011365,2]
[355467988,1741189847069,-2376.64,0.00011365,2]
[355467989,1741189847080,-2343.8,0.00011365,2]
[355467990,1741189847090,-8307.0,0.00011365,2]
[355467991,1741189847100,-1855.6,0.00011365,2]
[355467992,1741189847109,-656.43,0.00011365,2]
[355467993,1741189847119,-716.6,0.00011365,2]
[355467994,1741189847129,-6088.42,0.00011365,2]
[355467995,1741189847139,-500.0,0.00011365,2]
[355467996,1741189847149,-2617.62,0.00011365,2]
[355467997,1741189847159,-4727.95,0.00011365,2]
[355467998,1741189847170,-789.1,0.00011365,2]
[355467999,1741189847180,-3982.4,0.00011365,2]
[355468000,1741189847190,-3880.63,0.00011365,2]
[355468001,1741189847200,-1541.19,0.00011365,2]
[355468002,1741189847210,-5353.78,0.00011365,2]
[355468003,1741189847220,-8920.88300446,0.00011365,2]
[355468004,1741189848213,-2275.2015,0.00010991,2]
[355468005,1741189848226,-11589.73699554,0.00011365,2]
[355468006,1741189848237,-5654.92,0.00011365,2]
[355468007,1741189848535,-1620.71,0.00011365,2]
[355468008,1741189848548,-4930.42,0.00011365,2]
[355468009,1741189848558,-5351.17,0.00011365,2]
[355468010,1741189848568,-1276.84,0.00011365,2]
[355468011,1741189848578,-604.47,0.00011365,2]
[355468012,1741189848588,-2008.69,0.00011365,2]
[355468013,1741189848598,-1394.97,0.00011365,2]
[355468014,1741189848610,-1420.84,0.00011365,2]
[355468015,1741189848620,-1207.47,0.00011365,2]
[355468016,1741189848630,-1814.79,0.00011365,2]
[355468017,1741189848640,-2902.75,0.00011365,2]
[355468018,1741189848650,-567.65,0.00011365,2]
[355468019,1741189848660,-1538.6,0.00011365,2]
[355468020,1741189848672,-1511.21,0.00011365,2]
[355468021,1741189848682,-2866.93,0.00011365,2]
[355468022,1741189848692,-1258.29,0.00011365,2]
[355468023,1741189848702,-500.0,0.00011365,2]
[355468024,1741189848711,-2129.14,0.00011365,2]
[355468025,1741189848721,-4884.7,0.00011365,2]
[355468026,1741189848730,-23858.92,0.00011365,2]
[355468027,1741189848741,-2312.03,0.00011365,2]
[355468028,1741189848752,-1800.93,0.00011365,2]
[355468029,1741189848762,-500.0,0.00011365,2]
[355468030,1741189848772,-1458.34,0.00011365,2]
[355468031,1741189848783,-500.0,0.00011365,2]
[355468032,1741189848795,-1364.05,0.00011365,2]
[355468033,1741189848807,-1121.58,0.00011365,2]
[355468034,1741189848817,-3049.78,0.00011365,2]
[355468035,1741189848827,-1337.33,0.00011365,2]
[355468036,1741189848839,-537.15,0.00011365,2]
[355468037,1741189848848,-5636.43,0.00011365,2]
[355468038,1741189848858,-2322.03,0.00011365,2]
[355468039,1741189848868,-919.95,0.00011365,2]
[355468040,1741189848879,-3212.71,0.00011365,2]
[355468041,1741189848890,-1151.9,0.00011365,2]
[355468042,1741189848900,-2291.01,0.00011365,2]
[355468043,1741189848910,-7724.69,0.00011365,2]
[355468044,1741189848919,-692.58,0.00011365,2]
[355468045,1741189848931,-1339.53,0.00011365,2]
[355468046,1741189848940,-4723.66,0.00011365,2]
[355468047,1741189848950,-9043.96,0.00011365,2]
[355468048,1741189848960,-2078.89,0.00011365,2]
[355468049,1741189848971,-2126.72,0.00011365,2]
[355468050,1741189848980,-881.16,0.00011365,2]
[355468051,1741189848990,-1792.76,0.00011365,2]
[355468052,1741189849000,-1200.89,0.00011365,2]
[355468053,1741189849010,-3190.46,0.00011365,2]
[355468054,1741189849020,-1176.84,0.00011365,2]
[355468055,1741189849030,-1546.26,0.00011365,2]
[355468056,1741189849039,-500.0,0.00011365,2]
[355468057,1741189849050,-3644.11,0.00011365,2]
[355468058,1741189849060,-1103.79,0.00011365,2]
[355468059,1741189849070,-2997.28,0.00011365,2]
[355468060,1741189849079,-500.0,0.00011366,2]
[355468061,1741189849089,-581.41,0.00011366,2]
[355468062,1741189849098,-412.48612481,0.00011366,2]
[355468063,1741189849109,-525.54,0.00011366,2]
[355468064,1741189849125,-531.77,0.00011366,2]
[355468065,1741189849138,-674.46,0.00011366,2]
[355468066,1741189849148,-652.44,0.00011366,2]
[355468067,1741189849158,-502.56,0.00011366,2]
[355468068,1741189849168,-500.0,0.00011366,2]
[355468069,1741189849181,-500.0,0.00011366,2]
[355468070,1741189849191,-577.26,0.00011366,2]
[355468071,1741189849202,-500.0,0.00011366,2]
[355468072,1741189849212,-549.54,0.00011366,2]
[355468073,1741189849222,-500.0,0.00011366,2]
[355468074,1741189849232,-663.17,0.00011366,2]
[355468075,1741189849242,-500.0,0.00011366,2]
[355468076,1741189849252,-566.93,0.00011366,2]
[355468077,1741189849262,-722.95,0.00011366,2]
[355468078,1741189849272,-793.8,0.00011366,2]
[355468079,1741189849282,-500.0,0.00011366,2]
[355468080,1741189849291,-1080.36,0.00011366,2]
[355468081,1741189849302,-500.0,0.00011366,2]
[355468082,1741189849312,-500.0,0.00011366,2]
[355468083,1741189849322,-755.17,0.00011366,2]
[355468084,1741189849332,-500.0,0.00011366,2]
[355468085,1741189849343,-680.2,0.00011366,2]
[355468086,1741189849353,-532.7,0.00011366,2]
[355468087,1741189849363,-500.0,0.00011366,2]
[355468088,1741189849374,-500.0,0.00011366,2]
[355468089,1741189849383,-500.0,0.00011366,2]
[355468090,1741189849393,-500.0,0.00011366,2]
[355468091,1741189849404,-1619.58,0.00011366,2]
[355468092,1741189849414,-500.0,0.00011366,2]
[355468093,1741189849426,-1371.25,0.00011366,2]
[355468094,1741189849436,-500.0,0.00011366,2]
[355468095,1741189849446,-500.0,0.00011366,2]
[355468096,1741189849456,-707.26,0.00011366,2]
[355468097,1741189849466,-1460.14,0.00011366,2]
[355468098,1741189849475,-1055.64,0.00011366,2]
[355468099,1741189849484,-500.0,0.00011366,2]
[355468100,1741189849494,-500.0,0.00011366,2]
[355468101,1741189849503,-521.34,0.00011366,2]
[355468102,1741189849513,-886.69,0.00011366,2]
[355468103,1741189849523,-500.0,0.00011366,2]
[355468104,1741189849533,-500.0,0.00011366,2]
[355468105,1741189849542,-500.0,0.00011366,2]
[355468106,1741189849551,-896.1,0.00011366,2]
[355468107,1741189849561,-1313.07,0.00011366,2]
[355468108,1741189849571,-500.0,0.00011366,2]
[355468109,1741189849580,-500.0,0.00011366,2]
[355468110,1741189849590,-458.49,0.00011366,2]
[355468111,1741189849599,-949.87,0.00011366,2]
[355468112,1741189849611,-681.33,0.00011366,2]
[355468113,1741189849620,-278.4310759,0.00011366,2]
[355468114,1741189849630,-1586.91,0.00011366,2]
[355468115,1741189849639,-908.28,0.00011366,2]
[355468116,1741189849649,-500.0,0.00011366,2]
[355468117,1741189849660,-585.77,0.00011366,2]
[355468118,1741189849670,-768.26,0.00011366,2]
[355468119,1741189849682,-1046.93,0.00011366,2]
[355468120,1741189849693,-1478.0,0.00011366,2]
[355468121,1741189849702,-663.43,0.00011366,2]
[355468122,1741189849712,-870.89,0.00011366,2]
[355468123,1741189849721,-500.0,0.00011366,2]
[355468124,1741189849731,-741.02,0.00011366,2]
[355468125,1741189849740,-903.24,0.00011366,2]
[355468126,1741189849750,-500.0,0.00011366,2]
[355468127,1741189849760,-654.87,0.00011366,2]
[355468128,1741189849769,-2378.66,0.00011366,2]
[355468129,1741189849779,-547.74,0.00011366,2]
[355468130,1741189849791,-800.5,0.00011366,2]
[355468131,1741189849805,-1596.22,0.00011366,2]
[355468132,1741189849816,-921.25,0.00011366,2]
[355468133,1741189849827,-826.68,0.00011366,2]
[355468134,1741189849838,-548.41,0.00011366,2]
[355468135,1741189849847,-562.91,0.00011366,2]
[355468136,1741189849858,-518.03,0.00011366,2]
[355468137,1741189849868,-1561.51,0.00011366,2]
[355468138,1741189849879,-572.17,0.00011366,2]
[355468139,1741189849890,-508.02,0.00011366,2]
[355468140,1741189849900,-815.04,0.00011366,2]
[355468141,1741189849910,-525.03,0.00011366,2]
[355468142,1741189849922,-532.62,0.00011366,2]
[355468143,1741189849932,-702.42,0.00011366,2]
[355468144,1741189849942,-1768.82,0.00011366,2]
[355468145,1741189849951,-855.47,0.00011366,2]
[355468146,1741189849961,-1296.37,0.00011366,2]
[355468147,1741189849971,-620.14,0.00011366,2]
[355468148,1741189849981,-800.2,0.00011366,2]
[355468149,1741189849990,-500.0,0.00011366,2]
[355468150,1741189849999,-1143.14,0.00011366,2]
[355468151,1741189850009,-819.56,0.00011366,2]
[355468152,1741189850018,-782.04,0.00011366,2]
[355468153,1741189850028,-543.7,0.00011366,2]
[355468154,1741189850038,-823.38,0.00011366,2]
[355468155,1741189850048,-1896.2,0.00011366,2]
[355468156,1741189850058,-556.27,0.00011366,2]
[355468157,1741189850068,-991.26,0.00011366,2]
[355468158,1741189850078,-1271.73,0.00011366,2]
[355468159,1741189850088,-1471.28,0.00011366,2]
[355468160,1741189850097,-530.67,0.00011366,2]
[355468161,1741189850107,-998.04,0.00011366,2]
[355468162,1741189850117,-2521.02,0.00011366,2]
[355468163,1741189850126,-604.71,0.00011366,2]
[355468164,1741189850136,-981.84,0.00011366,2]
[355468165,1741189850146,-1258.99,0.00011366,2]
[355468166,1741189850155,-500.0,0.00011366,2]
[355468167,1741189850165,-979.4,0.00011366,2]
[355468168,1741189850175,-966.48,0.00011366,2]
[355468169,1741189850184,-968.11,0.00011366,2]
[355468170,1741189850194,-500.0,0.00011366,2]
[355468171,1741189850204,-593.89,0.00011366,2]
[355468172,1741189850213,-2668.86,0.00011366,2]
[355468173,1741189850223,-688.18,0.00011366,2]
[355468174,1741189850232,-725.45,0.00011366,2]
[355468175,1741189850242,-629.86,0.00011366,2]
[355468176,1741189850252,-1170.47,0.00011366,2]
[355468177,1741189850261,-781.07,0.00011366,2]
[355468178,1741189850271,-500.0,0.00011366,2]
[355468179,1741189850281,-514.86,0.00011366,2]
[355468180,1741189850294,-1487.47,0.00011366,2]
[355468181,1741189850304,-818.7,0.00011366,2]
[355468182,1741189850314,-540.69,0.00011366,2]
[355468183,1741189850324,-698.34,0.00011366,2]
[355468184,1741189850334,-604.1,0.00011366,2]
[355468185,1741189850344,-1108.15,0.00011366,2]
[355468186,1741189850354,-855.73,0.00011366,2]
[355468187,1741189850364,-2140.53,0.00011366,2]
[355468188,1741189850373,-534.45853048,0.00011366,2]
[355468189,1741189850384,-500.0,0.00011366,2]
[355468190,1741189850396,-500.0,0.00011366,2]
[355468191,1741189850406,-661.72,0.00011366,2]
[355468192,1741189850417,-500.0,0.00011366,2]
[355468193,1741189850428,-885.8,0.00011366,2]
[355468194,1741189850438,-500.0,0.00011366,2]
[355468195,1741189850447,-955.77,0.00011366,2]
[355468196,1741189850457,-1154.17,0.00011366,2]
[355468197,1741189850466,-500.0,0.00011366,2]
[355468198,1741189850476,-555.54,0.00011366,2]
[355468199,1741189850486,-1931.21,0.00011366,2]
[355468200,1741189850495,-679.14,0.00011366,2]
[355468201,1741189850505,-847.25,0.00011366,2]
[355468202,1741189850516,-500.0,0.00011366,2]
[355468203,1741189850525,-500.0,0.00011366,2]
[355468204,1741189850535,-500.0,0.00011366,2]
[355468205,1741189850545,-500.0,0.00011366,2]
[355468206,1741189850555,-251.9112279,0.00011366,2]
[355468207,1741189850564,-500.0,0.00011366,2]
[355468208,1741189850574,-988.12,0.00011366,2]
[355468209,1741189850584,-554.61,0.00011366,2]
[355468210,1741189850593,-500.0,0.00011366,2]
[355468211,1741189850603,-798.85,0.00011366,2]
[355468212,1741189850613,-1473.16,0.00011366,2]
[355468213,1741189850623,-500.0,0.00011366,2]
[355468214,1741189850634,-500.0,0.00011366,2]
[355468215,1741189850643,-1471.75,0.00011366,2]
[355468216,1741189850653,-889.59,0.00011366,2]
[355468217,1741189850663,-548.64,0.00011366,2]
[355468218,1741189850673,-500.0,0.00011366,2]
[355468219,1741189850685,-460.25463681,0.00011366,2]
[355468220,1741189850694,-500.0,0.00011366,2]
[355468221,1741189850704,-500.0,0.00011366,2]
[355468222,1741189850715,-500.0,0.00011366,2]
[355468223,1741189850724,-500.0,0.00011366,2]
[355468224,1741189850734,-602.66,0.00011366,2]
[355468225,1741189850744,-1242.4,0.00011366,2]
[355468226,1741189850754,-500.0,0.00011366,2]
[355468227,1741189850764,-500.0,0.00011366,2]
[355468228,1741189850774,-1173.18,0.00011366,2]
[355468229,1741189850784,-500.0,0.00011366,2]
[355468230,1741189850798,-500.0,0.00011366,2]
[355468231,1741189850808,-606.87692405,0.00011366,2]
[355468232,1741189850818,-1366.28,0.00011366,2]
[355468233,1741189850827,-1846.22,0.00011366,2]
[355468234,1741189850838,-1189.24,0.00011366,2]
[355468235,1741189850848,-500.0,0.00011366,2]
[355468236,1741189850858,-1446.17,0.00011366,2]
[355468237,1741189850870,-861.7,0.00011366,2]
[355468238,1741189850879,-500.0,0.00011366,2]
[355468239,1741189850889,-500.0,0.00011366,2]
[355468240,1741189850898,-500.0,0.00011366,2]
[355468241,1741189850908,-539.68,0.00011366,2]
[355468242,1741189850918,-500.0,0.00011366,2]
[355468243,1741189850929,-500.0,0.00011366,2]
[355468244,1741189850939,-500.0,0.00011366,2]
[355468245,1741189850948,-2224.28,0.00011366,2]
[355468246,1741189850958,-500.0,0.00011366,2]
[355468247,1741189850968,-500.0,0.00011366,2]
[355468248,1741189850980,-160.42810234,0.00011366,2]
[355468249,1741189850990,-2108.65,0.00011366,2]
[355468250,1741189850999,-1104.87,0.00011366,2]
[355468251,1741189851009,-808.38,0.00011366,2]
[355468252,1741189851018,-500.0,0.00011366,2]
[355468253,1741189851027,-500.0,0.00011366,2]
[355468254,1741189851037,-817.55,0.00011366,2]
[355468255,1741189851046,-500.0,0.00011366,2]
[355468256,1741189851056,-500.0,0.00011366,2]
[355468257,1741189851066,-1015.45,0.00011366,2]
[355468258,1741189851075,-500.0,0.00011366,2]
[355468259,1741189851085,-500.0,0.00011366,2]
[355468260,1741189851094,-500.0,0.00011366,2]
[355468261,1741189851104,-683.9,0.00011366,2]
[355468262,1741189851114,-1453.33,0.00011366,2]
[355468263,1741189851124,-500.0,0.00011366,2]
[355468264,1741189851133,-500.0,0.00011366,2]
[355468265,1741189851143,-500.0,0.00011366,2]
[355468266,1741189851153,-1173.73,0.00011366,2]
[355468267,1741189851162,-1102.63,0.00011366,2]
[355468268,1741189851172,-500.0,0.00011366,2]
[355468269,1741189851184,-500.0,0.00011367,2]
[355468270,1741189851193,-500.0,0.00011367,2]
[355468271,1741189851203,-500.0,0.00011367,2]
[355468272,1741189851213,-710.94,0.00011367,2]
[355468273,1741189851223,-500.0,0.00011367,2]
[355468274,1741189851233,-500.0,0.00011367,2]
[355468275,1741189851243,-500.0,0.00011367,2]
[355468276,1741189851253,-500.0,0.00011367,2]
[355468277,1741189851262,-770.9,0.00011367,2]
[355468278,1741189851272,-500.0,0.00011367,2]
[355468279,1741189851282,-1187.44,0.00011367,2]
[355468280,1741189851291,-500.0,0.00011367,2]
[355468281,1741189851301,-304.76566052,0.00011367,2]
[355468282,1741189851310,-500.0,0.00011367,2]
[355468283,1741189851319,-583.49,0.00011367,2]
[355468284,1741189851329,-150.0735908,0.00011373,2]
[355468285,1741189851339,-1870.837,0.00011409,2]
[355468286,1741189851348,-150.0735908,0.00011427,2]
[355468287,1741189851358,-714.92457456,0.00011448,2]
[355468288,1741189851368,-494.66118359,0.00011448,2]
[355468289,1741189851378,-150.0735908,0.00011482,2]
[355468290,1741189851387,-2751.0,0.00011507,2]
[355468291,1741189851397,-150.0735908,0.00011536,2]
[355468292,1741189851407,-170.40637425,0.0001154,2]
[355468293,1741189851417,-161.8777062,0.00011563,2]
[355468294,1741189851427,-1787.74671693,0.00011564,2]
[355468295,1741189851437,-150.0735908,0.00011591,2]
[355468296,1741189851447,-440.35,0.00011592,2]
[355468297,1741189851458,-714.92457456,0.000116,2]
[355468298,1741189851470,-494.66118359,0.000116,2]
[355468299,1741189851485,-500.0,0.00011638,2]
[355468300,1741189851498,-500.0,0.00011638,2]
[355468301,1741189851510,-500.0,0.00011638,2]
[355468302,1741189851521,-500.0,0.00011638,2]
[355468303,1741189851532,-500.0,0.00011638,2]
[355468304,1741189851545,-580.66,0.00011638,2]
[355468305,1741189851559,-500.0,0.00011638,2]
[355468306,1741189851571,-524.5,0.00011638,2]
[355468307,1741189851583,-500.0,0.00011638,2]
[355468308,1741189851596,-500.0,0.00011638,2]
[355468309,1741189851609,-500.0,0.00011638,2]
[355468310,1741189851622,-500.0,0.00011638,2]
[355468311,1741189851634,-500.0,0.00011638,2]
[355468312,1741189851645,-1011.9,0.00011638,2]
[355468313,1741189851657,-1123.09,0.00011638,2]
[355468314,1741189851667,-928.87,0.00011638,2]
[355468315,1741189851679,-1816.91,0.00011638,2]
[355468316,1741189851692,-572.71,0.00011638,2]
[355468317,1741189851704,-500.0,0.00011638,2]
[355468318,1741189851716,-686.93,0.00011638,2]
[355468319,1741189851729,-566.74,0.00011638,2]
[355468320,1741189851741,-1735.91,0.00011638,2]
[355468321,1741189851755,-500.0,0.00011638,2]
[355468322,1741189851767,-500.0,0.00011638,2]
[355468323,1741189851779,-500.0,0.00011638,2]
[355468324,1741189851792,-880.16,0.00011638,2]
[355468325,1741189851808,-1151.18,0.00011638,2]
[355468326,1741189851821,-509.19,0.00011638,2]
[355468327,1741189851834,-500.0,0.00011638,2]
[355468328,1741189851847,-512.94,0.00011638,2]
[355468329,1741189851860,-1190.71,0.00011638,2]
[355468330,1741189851872,-500.0,0.00011638,2]
[355468331,1741189851883,-2060.55,0.00011638,2]
[355468332,1741189851896,-3043.45,0.00011638,2]
[355468333,1741189851907,-500.0,0.00011638,2]
[355468334,1741189851920,-500.0,0.00011638,2]
[355468335,1741189851936,-1320.39,0.00011638,2]
[355468336,1741189851948,-938.79,0.00011638,2]
[355468337,1741189851960,-500.0,0.00011638,2]
[355468338,1741189851972,-1075.1,0.00011638,2]
[355468339,1741189851984,-500.0,0.00011638,2]
[355468340,1741189851994,-1841.46,0.00011638,2]
[355468341,1741189852005,-500.0,0.00011638,2]
[355468342,1741189852017,-504.78,0.00011638,2]
[355468343,1741189852028,-12667.49,0.00011638,2]
[355468344,1741189852043,-500.0,0.00011638,2]
[355468345,1741189852055,-872.48,0.00011638,2]
[355468346,1741189852066,-500.0,0.00011638,2]
[355468347,1741189852077,-911.32,0.00011638,2]
[355468348,1741189852086,-968.17,0.00011638,2]
[355468349,1741189852097,-500.0,0.00011638,2]
[355468350,1741189852109,-804.14,0.00011638,2]
[355468351,1741189852120,-1584.24,0.00011638,2]
[355468352,1741189852133,-807.6,0.00011638,2]
[355468353,1741189852145,-500.0,0.00011638,2]
[355468354,1741189852156,-500.0,0.00011638,2]
[355468355,1741189852166,-718.84,0.00011639,2]
[355468356,1741189852178,-579.67,0.00011639,2]
[355468357,1741189852189,-500.0,0.00011639,2]
[355468358,1741189852200,-500.0,0.00011639,2]
[355468359,1741189852212,-831.74,0.00011639,2]
[355468360,1741189852223,-588.75,0.00011639,2]
[355468361,1741189852235,-500.0,0.00011639,2]
[355468362,1741189852246,-509.03,0.00011639,2]
[355468363,1741189852257,-500.0,0.00011639,2]
[355468364,1741189852269,-500.0,0.00011639,2]
[355468365,1741189852280,-569.9,0.00011639,2]
[355468366,1741189852291,-500.0,0.00011639,2]
[355468367,1741189852302,-728.98,0.00011639,2]
[355468368,1741189852313,-500.0,0.00011639,2]
[355468369,1741189852325,-676.33,0.00011639,2]
[355468370,1741189852336,-500.0,0.00011639,2]
[355468371,1741189852347,-500.0,0.00011639,2]
[355468372,1741189852359,-500.0,0.00011639,2]
[355468373,1741189852369,-785.28,0.00011639,2]
[355468374,1741189852383,-753.39,0.00011639,2]
[355468375,1741189852394,-500.0,0.00011639,2]
[355468376,1741189852405,-565.02,0.00011639,2]
[355468377,1741189852416,-500.0,0.00011639,2]
[355468378,1741189852428,-877.82,0.00011639,2]
[355468379,1741189852439,-500.0,0.00011639,2]
[355468380,1741189852449,-500.0,0.00011639,2]
[355468381,1741189852461,-1026.38,0.00011639,2]
[355468382,1741189852472,-618.83,0.00011639,2]
[355468383,1741189852482,-500.0,0.00011639,2]
[355468384,1741189852493,-928.33,0.00011639,2]
[355468385,1741189852504,-500.0,0.00011639,2]
[355468386,1741189852515,-500.0,0.00011639,2]
[355468387,1741189852526,-1210.93,0.00011639,2]
[355468388,1741189852537,-500.0,0.00011639,2]
[355468389,1741189852547,-595.31,0.00011639,2]
[355468390,1741189852559,-500.0,0.00011639,2]
[355468391,1741189852570,-500.0,0.00011639,2]
[355468392,1741189852581,-532.37,0.00011639,2]
[355468393,1741189852592,-500.0,0.00011639,2]
[355468394,1741189852603,-769.39,0.00011639,2]
[355468395,1741189852614,-1048.1,0.00011639,2]
[355468396,1741189852625,-500.0,0.00011639,2]
[355468397,1741189852635,-500.0,0.00011639,2]
[355468398,1741189852646,-500.0,0.00011639,2]
[355468399,1741189852657,-1014.19,0.00011639,2]
[355468400,1741189852668,-500.0,0.00011639,2]
[355468401,1741189852678,-500.0,0.00011639,2]
[355468402,1741189852689,-500.0,0.00011639,2]
[355468403,1741189852701,-1018.67,0.00011639,2]
[355468404,1741189852711,-870.5,0.00011639,2]
[355468405,1741189852721,-905.48,0.00011639,2]
[355468406,1741189852731,-1541.44,0.00011639,2]
[355468407,1741189852741,-566.47,0.00011639,2]
[355468408,1741189852752,-1497.51,0.00011639,2]
[355468409,1741189852763,-898.67,0.00011639,2]
[355468410,1741189852773,-500.0,0.00011639,2]
[355468411,1741189852784,-396.24461,0.00011639,2]
[355468412,1741189852797,-2017.66,0.00011639,2]
[355468413,1741189852808,-1440.09,0.00011639,2]
[355468414,1741189852819,-908.36,0.00011639,2]
[355468415,1741189852830,-829.32,0.00011639,2]
[355468416,1741189852841,-1160.27,0.00011639,2]
[355468417,1741189852853,-924.39,0.00011639,2]
[355468418,1741189852864,-599.539402,0.00011639,2]
[355468419,1741189852875,-1513.47,0.00011639,2]
[355468420,1741189852887,-1446.89,0.00011639,2]
[355468421,1741189852898,-4412.09,0.00011639,2]
[355468422,1741189852909,-1776.34,0.00011639,2]
[355468423,1741189852920,-505.58,0.00011639,2]
[355468424,1741189852932,-1244.65,0.00011639,2]
[355468425,1741189852943,-1535.61,0.00011639,2]
[355468426,1741189852955,-2376.64,0.00011639,2]
[355468427,1741189852967,-2343.8,0.00011639,2]
[355468428,1741189852978,-1801.39793997,0.00011639,2]
[355468429,1741189853440,-6505.60206003,0.00011639,2]
[355468430,1741189853450,-1855.6,0.00011639,2]
[355468431,1741189853461,-656.43,0.00011639,2]
[355468432,1741189853471,-716.6,0.00011639,2]
[355468433,1741189853481,-6088.42,0.00011639,2]
[355468434,1741189853492,-500.0,0.00011639,2]
[355468435,1741189853503,-2617.62,0.00011639,2]
[355468436,1741189853514,-4727.95,0.00011639,2]
[355468437,1741189853524,-789.1,0.00011639,2]
[355468438,1741189853534,-3982.4,0.00011639,2]
[355468439,1741189853545,-3880.63,0.00011639,2]
[355468440,1741189853555,-5353.78,0.00011639,2]
[355468441,1741189853566,-1541.19,0.00011639,2]
[355468442,1741189853577,-20510.62,0.00011639,2]
[355468443,1741189853588,-5654.92,0.00011639,2]
[355468444,1741189853598,-1620.71,0.00011639,2]
[355468445,1741189853608,-4930.42,0.00011639,2]
[355468446,1741189853618,-5351.17,0.00011639,2]
[355468447,1741189853629,-1276.84,0.00011639,2]
[355468448,1741189853640,-604.47,0.00011639,2]
[355468449,1741189853650,-2008.69,0.00011639,2]
[355468450,1741189853661,-1394.97,0.00011639,2]
[355468451,1741189853671,-1420.84,0.00011639,2]
[355468452,1741189853683,-1207.47,0.00011639,2]
[355468453,1741189853694,-1814.79,0.00011639,2]
[355468454,1741189853705,-2902.75,0.00011639,2]
[355468455,1741189853716,-1538.6,0.00011639,2]